[Event "Titled Tuesday Blitz November 22 Late 2022"]
[White "Bach, Matthias"]
[Black "Poliakova, Varvara"]
[WhiteFideId "4603168"]
[BlackFideId "13518313"]
[WhiteElo "2165"]
[BlackElo "2099"]
[Result "0-1"]
[Round "08"]
[TimeControl "180+1"]
[Date "2022.11.23"]
[WhiteClock "0:00:04"]
[BlackClock "0:00:42"]

1. d4 {[%clk 0:02:57]}  f5 {[%clk 0:02:58]} 2. e4 {[%clk 0:02:55]}  d6 {[%clk 0:02:58]} 3. exf5 {[%clk 0:02:53]}  Bxf5 {[%clk 0:02:59]} 4. Bd3 {[%clk 0:02:53]}  Qd7 {[%clk 0:02:53]} 5. Ne2 {[%clk 0:02:52]}  Nf6 {[%clk 0:02:51]} 6. Ng3 {[%clk 0:02:48]}  Bxd3 {[%clk 0:02:49]} 7. Qxd3 {[%clk 0:02:49]}  g6 {[%clk 0:02:48]} 8. O-O {[%clk 0:02:47]}  Bg7 {[%clk 0:02:48]} 9. Nc3 {[%clk 0:02:42]}  Nc6 {[%clk 0:02:48]} 10. Nce2 {[%clk 0:02:35]}  O-O {[%clk 0:02:48]} 11. Nf4 {[%clk 0:02:10]}  e5 {[%clk 0:02:44]} 12. dxe5 {[%clk 0:02:10]}  Nxe5 {[%clk 0:02:44]} 13. Qb3+ {[%clk 0:02:09]}  Kh8 {[%clk 0:02:39]} 14. Ne6 {[%clk 0:02:08]}  Rfe8 {[%clk 0:02:37]} 15. Nxg7 {[%clk 0:02:07]}  Qxg7 {[%clk 0:02:38]} 16. Bd2 {[%clk 0:01:57]}  b6 {[%clk 0:02:35]} 17. Rae1 {[%clk 0:01:54]}  a5 {[%clk 0:02:30]} 18. f4 {[%clk 0:01:44]}  Neg4 {[%clk 0:02:22]} 19. h3 {[%clk 0:01:44]}  Nh6 {[%clk 0:02:19]} 20. f5 {[%clk 0:01:42]}  Rxe1 {[%clk 0:02:16]} 21. Bxe1 {[%clk 0:01:33]}  Nf7 {[%clk 0:02:05]} 22. Bc3 {[%clk 0:01:27]}  Ne5 {[%clk 0:02:01]} 23. Bxe5 {[%clk 0:01:14]}  dxe5 {[%clk 0:02:02]} 24. fxg6 {[%clk 0:01:14]}  hxg6 {[%clk 0:01:56]} 25. Qf3 {[%clk 0:01:00]}  Rf8 {[%clk 0:01:53]} 26. Ne4 {[%clk 0:00:59]}  Nd7 {[%clk 0:01:52]} 27. Qg4 {[%clk 0:00:52]}  Rxf1+ {[%clk 0:01:50]} 28. Kxf1 {[%clk 0:00:53]}  Qf7+ {[%clk 0:01:49]} 29. Kg1 {[%clk 0:00:53]}  Qf5 {[%clk 0:01:49]} 30. Qh4+ {[%clk 0:00:51]}  Kg7 {[%clk 0:01:48]} 31. Qe7+ {[%clk 0:00:49]}  Qf7 {[%clk 0:01:49]} 32. Qd8 {[%clk 0:00:44]}  Nf8 {[%clk 0:01:46]} 33. Ng5 {[%clk 0:00:36]}  Qc4 {[%clk 0:01:37]} 34. Qe7+ {[%clk 0:00:33]}  Kg8 {[%clk 0:01:38]} 35. h4 {[%clk 0:00:28]}  Qd4+ {[%clk 0:01:35]} 36. Kf1 {[%clk 0:00:29]}  Qf4+ {[%clk 0:01:34]} 37. Kg1 {[%clk 0:00:29]}  Qc1+ {[%clk 0:01:31]} 38. Kh2 {[%clk 0:00:27]}  Qf4+ {[%clk 0:01:28]} 39. Kh3 {[%clk 0:00:28]}  c5 {[%clk 0:01:24]} 40. g3 {[%clk 0:00:26]}  Qf5+ {[%clk 0:01:19]} 41. g4 {[%clk 0:00:26]}  Qf1+ {[%clk 0:01:18]} 42. Kh2 {[%clk 0:00:26]}  Qf4+ {[%clk 0:01:17]} 43. Kh3 {[%clk 0:00:26]}  b5 {[%clk 0:01:15]} 44. Qxc5 {[%clk 0:00:23]}  Qf1+ {[%clk 0:01:14]} 45. Kh2 {[%clk 0:00:22]}  Qd1 {[%clk 0:01:10]} 46. Qe7 {[%clk 0:00:20]}  Qxc2+ {[%clk 0:01:09]} 47. Kg3 {[%clk 0:00:19]}  Qd3+ {[%clk 0:01:08]} 48. Kh2 {[%clk 0:00:19]}  Qd2+ {[%clk 0:01:07]} 49. Kg3 {[%clk 0:00:19]}  Qe3+ {[%clk 0:01:07]} 50. Kh2 {[%clk 0:00:19]}  Qf2+ {[%clk 0:01:06]} 51. Kh3 {[%clk 0:00:20]}  Qf1+ {[%clk 0:01:02]} 52. Kh2 {[%clk 0:00:20]}  Qc4 {[%clk 0:00:57]} 53. Qxe5 {[%clk 0:00:13]}  Qxg4 {[%clk 0:00:56]} 54. Qg3 {[%clk 0:00:10]}  Qe2+ {[%clk 0:00:54]} 55. Kh3 {[%clk 0:00:10]}  Qxb2 {[%clk 0:00:53]} 56. Ne4 {[%clk 0:00:09]}  Qxa2 {[%clk 0:00:52]} 57. Nf6+ {[%clk 0:00:09]}  Kf7 {[%clk 0:00:50]} 58. Ng4 {[%clk 0:00:08]}  Qe6 {[%clk 0:00:47]} 59. Kh2 {[%clk 0:00:06]}  Ke7 {[%clk 0:00:43]} 60. Qc7+ {[%clk 0:00:04]}  Nd7 {[%clk 0:00:42]} 0-1


[Site "https://www.chess.com"]

[Event "Titled Tuesday Blitz November 22 Late 2022"]
[White "Bazzano, Sebastian"]
[Black "Castillo Pena, Patricia Evarista"]
[WhiteFideId "104566"]
[BlackFideId "6412106"]
[WhiteElo "2212"]
[BlackElo "1919"]
[Result "1-0"]
[Round "08"]
[TimeControl "180+1"]
[Date "2022.11.23"]
[WhiteClock "0:00:33"]
[BlackClock "0:00:02"]

1. d4 {[%clk 0:02:59]}  d5 {[%clk 0:02:57]} 2. Bf4 {[%clk 0:02:58]}  Nf6 {[%clk 0:02:56]} 3. e3 {[%clk 0:02:58]}  c5 {[%clk 0:02:54]} 4. c3 {[%clk 0:02:58]}  Nc6 {[%clk 0:02:54]} 5. Nd2 {[%clk 0:02:57]}  Bf5 {[%clk 0:02:52]} 6. Qb3 {[%clk 0:02:57]}  Qc8 {[%clk 0:02:42]} 7. Ngf3 {[%clk 0:02:56]}  c4 {[%clk 0:02:41]} 8. Qd1 {[%clk 0:02:54]}  e6 {[%clk 0:02:40]} 9. h3 {[%clk 0:02:53]}  h6 {[%clk 0:02:39]} 10. Be2 {[%clk 0:02:43]}  Be7 {[%clk 0:02:38]} 11. O-O {[%clk 0:02:43]}  O-O {[%clk 0:02:34]} 12. Ne5 {[%clk 0:02:37]}  Rd8 {[%clk 0:02:29]} 13. Re1 {[%clk 0:02:31]}  b5 {[%clk 0:02:27]} 14. Bf3 {[%clk 0:02:14]}  Nxe5 {[%clk 0:01:59]} 15. Bxe5 {[%clk 0:02:04]}  Nd7 {[%clk 0:01:51]} 16. Bg3 {[%clk 0:01:56]}  a5 {[%clk 0:01:51]} 17. e4 {[%clk 0:01:48]}  dxe4 {[%clk 0:01:38]} 18. Nxe4 {[%clk 0:01:44]}  Ra6 {[%clk 0:01:16]} 19. a3 {[%clk 0:01:27]}  Bf8 {[%clk 0:01:10]} 20. Qd2 {[%clk 0:01:07]}  Bxe4 {[%clk 0:01:03]} 21. Bxe4 {[%clk 0:01:06]}  Nc5 {[%clk 0:01:03]} 22. Bc2 {[%clk 0:00:57]}  Bd6 {[%clk 0:00:29]} 23. Bh4 {[%clk 0:00:47]}  Rd7 {[%clk 0:00:26]} 24. Qe3 {[%clk 0:00:45]}  Nb3 {[%clk 0:00:12]} 25. Qe4 {[%clk 0:00:40]}  g6 {[%clk 0:00:05]} 26. Rad1 {[%clk 0:00:37]}  Bf8 {[%clk 0:00:03]} 27. Bf6 {[%clk 0:00:36]}  Bg7 {[%clk 0:00:03]} 28. Bxg7 {[%clk 0:00:34]}  Kxg7 {[%clk 0:00:03]} 29. h4 {[%clk 0:00:35]}  h5 {[%clk 0:00:03]} 30. Qe5+ {[%clk 0:00:34]}  Kg8 {[%clk 0:00:02]} 31. Qxb5 {[%clk 0:00:33]} 1-0


[Site "https://www.chess.com"]

[Event "Titled Tuesday Blitz November 22 Late 2022"]
[White "Bogaudinov, Rushan"]
[Black "Walentukiewicz, Michal"]
[WhiteFideId "4129288"]
[BlackFideId "1126903"]
[WhiteElo "1997"]
[BlackElo "2026"]
[Result "1-0"]
[Round "08"]
[TimeControl "180+1"]
[Date "2022.11.23"]
[WhiteClock "0:00:10"]
[BlackClock "0:01:02"]

1. a3 {[%clk 0:03:00]}  g6 {[%clk 0:02:59]} 2. e3 {[%clk 0:02:58]}  Bg7 {[%clk 0:03:00]} 3. Nf3 {[%clk 0:02:58]}  c5 {[%clk 0:03:01]} 4. c4 {[%clk 0:02:55]}  Nf6 {[%clk 0:03:01]} 5. Nc3 {[%clk 0:02:55]}  O-O {[%clk 0:03:01]} 6. b4 {[%clk 0:02:53]}  cxb4 {[%clk 0:03:01]} 7. axb4 {[%clk 0:02:53]}  b6 {[%clk 0:03:01]} 8. d4 {[%clk 0:02:52]}  Bb7 {[%clk 0:03:01]} 9. Be2 {[%clk 0:02:52]}  d5 {[%clk 0:03:01]} 10. c5 {[%clk 0:02:51]}  bxc5 {[%clk 0:02:58]} 11. bxc5 {[%clk 0:02:51]}  Nc6 {[%clk 0:02:56]} 12. O-O {[%clk 0:02:51]}  Ne4 {[%clk 0:02:56]} 13. Nxe4 {[%clk 0:02:47]}  dxe4 {[%clk 0:02:56]} 14. Nd2 {[%clk 0:02:47]}  e5 {[%clk 0:02:57]} 15. Rb1 {[%clk 0:02:30]}  Rb8 {[%clk 0:02:51]} 16. Nxe4 {[%clk 0:02:29]}  exd4 {[%clk 0:02:47]} 17. Nd6 {[%clk 0:02:29]}  Qc7 {[%clk 0:02:36]} 18. e4 {[%clk 0:02:17]}  Ne5 {[%clk 0:02:34]} 19. Ba3 {[%clk 0:02:15]}  Bc6 {[%clk 0:02:24]} 20. f4 {[%clk 0:02:14]}  Nd7 {[%clk 0:02:20]} 21. e5 {[%clk 0:02:05]}  Rxb1 {[%clk 0:02:20]} 22. Qxb1 {[%clk 0:02:06]}  Rb8 {[%clk 0:02:13]} 23. Qd3 {[%clk 0:02:00]}  Qa5 {[%clk 0:02:11]} 24. Ra1 {[%clk 0:01:48]}  Nxc5 {[%clk 0:02:10]} 25. Qc4 {[%clk 0:01:41]}  Nb3 {[%clk 0:02:02]} 26. Qxf7+ {[%clk 0:01:35]}  Kh8 {[%clk 0:02:02]} 27. Nc4 {[%clk 0:00:51]}  Qc3 {[%clk 0:01:29]} 28. Rb1 {[%clk 0:00:44]}  Be4 {[%clk 0:01:25]} 29. Rf1 {[%clk 0:00:27]}  d3 {[%clk 0:01:25]} 30. Bd1 {[%clk 0:00:19]}  Nd4 {[%clk 0:01:25]} 31. Nd6 {[%clk 0:00:17]}  Ne2+ {[%clk 0:01:22]} 32. Kh1 {[%clk 0:00:16]}  Qxa3 {[%clk 0:01:22]} 33. Nxe4 {[%clk 0:00:15]}  Rf8 {[%clk 0:01:17]} 34. Qd5 {[%clk 0:00:14]}  Qe7 {[%clk 0:01:12]} 35. g3 {[%clk 0:00:14]}  Bxe5 {[%clk 0:01:10]} 36. Qxd3 {[%clk 0:00:13]}  Nxf4 {[%clk 0:01:04]} 37. gxf4 {[%clk 0:00:12]}  Bxf4 {[%clk 0:01:05]} 38. Qd4+ {[%clk 0:00:10]}  Be5 {[%clk 0:01:01]} 39. Rxf8+ {[%clk 0:00:10]}  Qxf8 {[%clk 0:01:01]} 40. Qxe5+ {[%clk 0:00:10]}  Qg7 {[%clk 0:01:02]} 41. Qxg7+ {[%clk 0:00:10]}  Kxg7 {[%clk 0:01:03]} 42. Ba4 {[%clk 0:00:10]}  Kf7 {[%clk 0:01:01]} 43. Kg2 {[%clk 0:00:10]}  Ke6 {[%clk 0:01:01]} 44. Ng5+ {[%clk 0:00:10]}  Kf5 {[%clk 0:01:02]} 45. Nxh7 {[%clk 0:00:10]} 1-0


[Site "https://www.chess.com"]

[Event "Titled Tuesday Blitz November 22 Late 2022"]
[White "Bortnyk, Olexandr"]
[Black "Lashkin, Jegor"]
[WhiteFideId "14120828"]
[BlackFideId "13907808"]
[WhiteElo "2723"]
[BlackElo "2368"]
[Result "1-0"]
[Round "08"]
[TimeControl "180+1"]
[Date "2022.11.22"]
[WhiteClock "0:00:29"]
[BlackClock "0:00:02"]

1. e4 {[%clk 0:02:55]}  c5 {[%clk 0:02:59]} 2. c3 {[%clk 0:02:55]}  Nf6 {[%clk 0:03:00]} 3. e5 {[%clk 0:02:55]}  Nd5 {[%clk 0:03:00]} 4. d4 {[%clk 0:02:55]}  cxd4 {[%clk 0:03:00]} 5. Nf3 {[%clk 0:02:56]}  d6 {[%clk 0:03:01]} 6. cxd4 {[%clk 0:02:55]}  Nc6 {[%clk 0:03:01]} 7. Bc4 {[%clk 0:02:55]}  Nb6 {[%clk 0:03:01]} 8. Bb5 {[%clk 0:02:54]}  dxe5 {[%clk 0:03:01]} 9. Nxe5 {[%clk 0:02:54]}  Bd7 {[%clk 0:03:02]} 10. Nxd7 {[%clk 0:02:54]}  Qxd7 {[%clk 0:03:03]} 11. Nc3 {[%clk 0:02:54]}  e6 {[%clk 0:03:03]} 12. O-O {[%clk 0:02:53]}  Rd8 {[%clk 0:03:04]} 13. Be3 {[%clk 0:02:41]}  Be7 {[%clk 0:03:04]} 14. Qg4 {[%clk 0:02:41]}  O-O {[%clk 0:03:04]} 15. Rfd1 {[%clk 0:02:37]}  Kh8 {[%clk 0:02:24]} 16. Rac1 {[%clk 0:02:34]}  Nd5 {[%clk 0:02:12]} 17. Nxd5 {[%clk 0:02:28]}  Qxd5 {[%clk 0:02:13]} 18. Bc4 {[%clk 0:02:28]}  Qa5 {[%clk 0:02:02]} 19. a3 {[%clk 0:01:53]}  Bf6 {[%clk 0:02:01]} 20. h3 {[%clk 0:01:46]}  Ne7 {[%clk 0:01:52]} 21. Bd2 {[%clk 0:01:33]}  Qf5 {[%clk 0:01:46]} 22. Qxf5 {[%clk 0:01:30]}  Nxf5 {[%clk 0:01:42]} 23. Bb4 {[%clk 0:01:31]}  Be7 {[%clk 0:01:19]} 24. Bc3 {[%clk 0:01:27]}  Bf6 {[%clk 0:01:18]} 25. Bb4 {[%clk 0:01:20]}  Be7 {[%clk 0:01:18]} 26. Bc3 {[%clk 0:01:21]}  Bf6 {[%clk 0:01:18]} 27. d5 {[%clk 0:01:22]}  Bxc3 {[%clk 0:01:18]} 28. Rxc3 {[%clk 0:01:23]}  e5 {[%clk 0:01:18]} 29. Bb3 {[%clk 0:01:18]}  Nd6 {[%clk 0:01:18]} 30. Rc7 {[%clk 0:01:17]}  f6 {[%clk 0:01:11]} 31. Rdc1 {[%clk 0:01:17]}  Rfe8 {[%clk 0:00:55]} 32. Ba4 {[%clk 0:01:16]}  Rf8 {[%clk 0:00:53]} 33. Bd7 {[%clk 0:01:16]}  Rf7 {[%clk 0:00:41]} 34. Be6 {[%clk 0:01:17]}  Rxc7 {[%clk 0:00:41]} 35. Rxc7 {[%clk 0:01:18]}  h5 {[%clk 0:00:31]} 36. a4 {[%clk 0:01:11]}  Kh7 {[%clk 0:00:28]} 37. b4 {[%clk 0:01:11]}  Kg6 {[%clk 0:00:28]} 38. f3 {[%clk 0:01:11]}  f5 {[%clk 0:00:28]} 39. h4 {[%clk 0:01:10]}  Kf6 {[%clk 0:00:28]} 40. Kf2 {[%clk 0:01:10]}  g5 {[%clk 0:00:27]} 41. hxg5+ {[%clk 0:01:03]}  Kxg5 {[%clk 0:00:27]} 42. Kg3 {[%clk 0:01:00]}  f4+ {[%clk 0:00:26]} 43. Kh3 {[%clk 0:00:58]}  Kf6 {[%clk 0:00:15]} 44. Kh4 {[%clk 0:00:53]}  Kg6 {[%clk 0:00:15]} 45. a5 {[%clk 0:00:51]}  a6 {[%clk 0:00:15]} 46. Re7 {[%clk 0:00:49]}  Kf6 {[%clk 0:00:15]} 47. Rh7 {[%clk 0:00:49]}  e4 {[%clk 0:00:06]} 48. fxe4 {[%clk 0:00:39]}  Nxe4 {[%clk 0:00:07]} 49. Rxh5 {[%clk 0:00:35]}  Ng3 {[%clk 0:00:07]} 50. Rh7 {[%clk 0:00:34]}  Ke5 {[%clk 0:00:03]} 51. Kg4 {[%clk 0:00:30]}  Ne4 {[%clk 0:00:03]} 52. Rxb7 {[%clk 0:00:29]}  Nf6+ {[%clk 0:00:02]} 53. Kf3 {[%clk 0:00:30]}  Rg8 {[%clk 0:00:02]} 54. Bxg8 {[%clk 0:00:29]}  Nxg8 {[%clk 0:00:02]} 55. d6 {[%clk 0:00:29]} 1-0


[Site "https://www.chess.com"]

[Event "Titled Tuesday Blitz November 22 Late 2022"]
[White "Deac, Bogdan-Daniel"]
[Black "Bobkov, Vadim"]
[WhiteFideId "1226380"]
[BlackFideId "34110876"]
[WhiteElo "2648"]
[BlackElo "2172"]
[Result "1-0"]
[Round "08"]
[TimeControl "180+1"]
[Date "2022.11.22"]
[WhiteClock "0:00:09"]
[BlackClock "0:00:05"]

1. Nf3 {[%clk 0:03:00]}  d5 {[%clk 0:03:00]} 2. b3 {[%clk 0:03:00]}  Nf6 {[%clk 0:03:00]} 3. Bb2 {[%clk 0:03:00]}  g6 {[%clk 0:03:00]} 4. c4 {[%clk 0:03:00]}  Bg7 {[%clk 0:02:58]} 5. cxd5 {[%clk 0:03:00]}  Qxd5 {[%clk 0:02:56]} 6. g3 {[%clk 0:02:57]}  O-O {[%clk 0:02:54]} 7. Bg2 {[%clk 0:02:57]}  Qh5 {[%clk 0:02:52]} 8. h3 {[%clk 0:02:57]}  c6 {[%clk 0:02:50]} 9. Nc3 {[%clk 0:02:53]}  Rd8 {[%clk 0:02:44]} 10. Qc2 {[%clk 0:02:46]}  Na6 {[%clk 0:02:39]} 11. a3 {[%clk 0:02:44]}  Qa5 {[%clk 0:02:19]} 12. b4 {[%clk 0:02:39]}  Qc7 {[%clk 0:02:18]} 13. O-O {[%clk 0:02:39]}  Bf5 {[%clk 0:02:13]} 14. e4 {[%clk 0:02:35]}  Be6 {[%clk 0:02:11]} 15. d4 {[%clk 0:02:35]}  Qc8 {[%clk 0:01:56]} 16. Kh2 {[%clk 0:02:34]}  Nc7 {[%clk 0:01:56]} 17. Rfd1 {[%clk 0:02:27]}  a5 {[%clk 0:01:56]} 18. Na4 {[%clk 0:02:25]}  Qb8 {[%clk 0:01:38]} 19. Nc5 {[%clk 0:02:21]}  Bc8 {[%clk 0:01:38]} 20. Ne5 {[%clk 0:02:15]}  Nfe8 {[%clk 0:01:29]} 21. f4 {[%clk 0:02:01]}  Ne6 {[%clk 0:01:16]} 22. Qb3 {[%clk 0:01:37]}  axb4 {[%clk 0:01:07]} 23. axb4 {[%clk 0:01:36]}  Rxa1 {[%clk 0:01:08]} 24. Bxa1 {[%clk 0:01:37]}  Bxe5 {[%clk 0:01:04]} 25. fxe5 {[%clk 0:01:35]}  b6 {[%clk 0:01:01]} 26. Nxe6 {[%clk 0:01:35]}  Bxe6 {[%clk 0:01:01]} 27. d5 {[%clk 0:01:35]}  cxd5 {[%clk 0:00:49]} 28. exd5 {[%clk 0:01:36]}  Bf5 {[%clk 0:00:50]} 29. Qb2 {[%clk 0:00:51]}  h5 {[%clk 0:00:41]} 30. d6 {[%clk 0:00:46]}  Be6 {[%clk 0:00:20]} 31. Rf1 {[%clk 0:00:37]}  Qa7 {[%clk 0:00:20]} 32. Qd2 {[%clk 0:00:30]}  Ng7 {[%clk 0:00:17]} 33. Qg5 {[%clk 0:00:19]}  Re8 {[%clk 0:00:14]} 34. Bd4 {[%clk 0:00:18]}  Qa2 {[%clk 0:00:13]} 35. Bxb6 {[%clk 0:00:16]}  Bd5 {[%clk 0:00:11]} 36. Rf2 {[%clk 0:00:15]}  Qb3 {[%clk 0:00:11]} 37. d7 {[%clk 0:00:14]}  Rf8 {[%clk 0:00:07]} 38. Qxe7 {[%clk 0:00:13]}  Bxg2 {[%clk 0:00:06]} 39. Qxf8+ {[%clk 0:00:11]}  Kxf8 {[%clk 0:00:06]} 40. d8=Q+ {[%clk 0:00:11]}  Ne8 {[%clk 0:00:07]} 41. Bc5+ {[%clk 0:00:10]}  Kg7 {[%clk 0:00:06]} 42. Rxg2 {[%clk 0:00:08]}  Qe6 {[%clk 0:00:05]} 43. Qe7 {[%clk 0:00:08]}  Qc6 {[%clk 0:00:05]} 44. Qf8+ {[%clk 0:00:08]}  Kh7 {[%clk 0:00:04]} 45. Qxf7+ {[%clk 0:00:08]}  Ng7 {[%clk 0:00:05]} 46. Bf8 {[%clk 0:00:09]} 1-0


[Site "https://www.chess.com"]

[Event "Titled Tuesday Blitz November 22 Late 2022"]
[White "Djordjevic, Vuk"]
[Black "Ibarra Jerez, Jose Carlos"]
[WhiteFideId "902098"]
[BlackFideId "2226332"]
[WhiteElo "2456"]
[BlackElo "2638"]
[Result "0-1"]
[Round "08"]
[TimeControl "180+1"]
[Date "2022.11.22"]
[WhiteClock "0:00:04"]
[BlackClock "0:00:49"]

1. d4 {[%clk 0:03:00]}  Nf6 {[%clk 0:02:59]} 2. Bg5 {[%clk 0:03:00]}  d5 {[%clk 0:02:57]} 3. Bxf6 {[%clk 0:02:59]}  gxf6 {[%clk 0:02:57]} 4. e3 {[%clk 0:02:59]}  c5 {[%clk 0:02:57]} 5. dxc5 {[%clk 0:02:59]}  e6 {[%clk 0:02:57]} 6. Nf3 {[%clk 0:02:58]}  Bxc5 {[%clk 0:02:57]} 7. Nbd2 {[%clk 0:02:56]}  Nc6 {[%clk 0:02:54]} 8. a3 {[%clk 0:02:53]}  f5 {[%clk 0:02:53]} 9. c4 {[%clk 0:02:47]}  dxc4 {[%clk 0:02:48]} 10. Bxc4 {[%clk 0:02:47]}  O-O {[%clk 0:02:46]} 11. O-O {[%clk 0:02:46]}  b6 {[%clk 0:02:40]} 12. b4 {[%clk 0:02:32]}  Bd6 {[%clk 0:02:34]} 13. Qa4 {[%clk 0:02:32]}  Bb7 {[%clk 0:02:27]} 14. Ba6 {[%clk 0:02:29]}  Bxa6 {[%clk 0:02:13]} 15. Qxa6 {[%clk 0:02:29]}  Qf6 {[%clk 0:02:13]} 16. Nc4 {[%clk 0:02:02]}  Qe7 {[%clk 0:01:27]} 17. Rac1 {[%clk 0:01:49]}  Rac8 {[%clk 0:01:18]} 18. Rfd1 {[%clk 0:01:29]}  Nb8 {[%clk 0:01:12]} 19. Qa4 {[%clk 0:01:12]}  Bc7 {[%clk 0:01:13]} 20. b5 {[%clk 0:01:00]}  Rfd8 {[%clk 0:01:10]} 21. g3 {[%clk 0:00:55]}  Rxd1+ {[%clk 0:01:10]} 22. Rxd1 {[%clk 0:00:55]}  Rd8 {[%clk 0:01:06]} 23. Rxd8+ {[%clk 0:00:42]}  Bxd8 {[%clk 0:01:07]} 24. Nce5 {[%clk 0:00:42]}  Qc7 {[%clk 0:01:06]} 25. h4 {[%clk 0:00:20]}  Bf6 {[%clk 0:01:05]} 26. Nd3 {[%clk 0:00:20]}  Nd7 {[%clk 0:01:03]} 27. Nf4 {[%clk 0:00:15]}  Nc5 {[%clk 0:01:03]} 28. Qd1 {[%clk 0:00:15]}  Kf8 {[%clk 0:01:01]} 29. Nh5 {[%clk 0:00:14]}  Bb2 {[%clk 0:01:01]} 30. Qd2 {[%clk 0:00:10]}  Bh8 {[%clk 0:00:58]} 31. e4 {[%clk 0:00:04]}  Nxe4 {[%clk 0:00:54]} 32. Qh6+ {[%clk 0:00:04]}  Ke7 {[%clk 0:00:54]} 33. Qxh7 {[%clk 0:00:04]}  Qc2 {[%clk 0:00:49]} 0-1


[Site "https://www.chess.com"]

[Event "Titled Tuesday Blitz November 22 Late 2022"]
[White "Feng, Eric"]
[Black "Gascon Del Nogal, Jose Rafael"]
[WhiteFideId "30952590"]
[BlackFideId "3902463"]
[WhiteElo "1785"]
[BlackElo "2473"]
[Result "1/2-1/2"]
[Round "08"]
[TimeControl "180+1"]
[Date "2022.11.23"]
[WhiteClock "0:01:05"]
[BlackClock "0:00:10"]

1. d4 {[%clk 0:03:00]}  Nf6 {[%clk 0:02:59]} 2. c4 {[%clk 0:03:00]}  c5 {[%clk 0:02:59]} 3. d5 {[%clk 0:03:00]}  g6 {[%clk 0:02:59]} 4. Nc3 {[%clk 0:02:59]}  Bg7 {[%clk 0:03:00]} 5. g3 {[%clk 0:02:56]}  O-O {[%clk 0:02:58]} 6. Bg2 {[%clk 0:02:56]}  e6 {[%clk 0:02:59]} 7. Nf3 {[%clk 0:02:55]}  exd5 {[%clk 0:02:58]} 8. cxd5 {[%clk 0:02:56]}  d6 {[%clk 0:02:58]} 9. O-O {[%clk 0:02:56]}  a6 {[%clk 0:02:52]} 10. a4 {[%clk 0:02:55]}  Re8 {[%clk 0:02:49]} 11. Re1 {[%clk 0:02:51]}  Ne4 {[%clk 0:02:47]} 12. Nxe4 {[%clk 0:02:46]}  Rxe4 {[%clk 0:02:48]} 13. Qc2 {[%clk 0:02:46]}  Bf5 {[%clk 0:02:41]} 14. Bh3 {[%clk 0:02:45]}  Rxa4 {[%clk 0:01:36]} 15. Qxa4 {[%clk 0:02:41]}  Bxh3 {[%clk 0:01:36]} 16. Bg5 {[%clk 0:02:40]}  f6 {[%clk 0:01:34]} 17. Bf4 {[%clk 0:02:40]}  g5 {[%clk 0:01:33]} 18. Bd2 {[%clk 0:02:38]}  Nd7 {[%clk 0:01:28]} 19. Qb3 {[%clk 0:02:32]}  b5 {[%clk 0:01:25]} 20. Bc3 {[%clk 0:02:30]}  b4 {[%clk 0:01:19]} 21. Bd2 {[%clk 0:02:30]}  h6 {[%clk 0:01:14]} 22. Qd3 {[%clk 0:02:27]}  Qc8 {[%clk 0:01:06]} 23. e4 {[%clk 0:02:23]}  g4 {[%clk 0:00:50]} 24. Nh4 {[%clk 0:02:11]}  Ne5 {[%clk 0:00:49]} 25. Qe2 {[%clk 0:02:08]}  f5 {[%clk 0:00:49]} 26. Nxf5 {[%clk 0:02:05]}  Nf3+ {[%clk 0:00:47]} 27. Qxf3 {[%clk 0:02:05]}  gxf3 {[%clk 0:00:42]} 28. Ne7+ {[%clk 0:02:05]}  Kf7 {[%clk 0:00:41]} 29. Nxc8 {[%clk 0:02:05]}  Bxc8 {[%clk 0:00:38]} 30. Bc1 {[%clk 0:01:58]}  h5 {[%clk 0:00:31]} 31. Re3 {[%clk 0:01:56]}  Bg4 {[%clk 0:00:24]} 32. h3 {[%clk 0:01:56]}  Bxh3 {[%clk 0:00:20]} 33. Rxf3+ {[%clk 0:01:57]}  Kg6 {[%clk 0:00:21]} 34. Ra2 {[%clk 0:01:54]}  a5 {[%clk 0:00:20]} 35. b3 {[%clk 0:01:51]}  Bg4 {[%clk 0:00:21]} 36. Rd3 {[%clk 0:01:50]}  Bd4 {[%clk 0:00:19]} 37. Kg2 {[%clk 0:01:49]}  Bd7 {[%clk 0:00:17]} 38. Bb2 {[%clk 0:01:42]}  Bb5 {[%clk 0:00:17]} 39. Rf3 {[%clk 0:01:43]}  Be2 {[%clk 0:00:13]} 40. Rf4 {[%clk 0:01:39]}  Bd1 {[%clk 0:00:13]} 41. Bxd4 {[%clk 0:01:38]}  cxd4 {[%clk 0:00:13]} 42. Rb2 {[%clk 0:01:37]}  Rc8 {[%clk 0:00:13]} 43. Rd2 {[%clk 0:01:18]}  Bxb3 {[%clk 0:00:12]} 44. Rxd4 {[%clk 0:01:18]}  Bc4 {[%clk 0:00:12]} 45. Rf3 {[%clk 0:01:15]}  b3 {[%clk 0:00:12]} 46. Rxc4 {[%clk 0:01:09]}  Rxc4 {[%clk 0:00:12]} 47. Rxb3 {[%clk 0:01:09]}  a4 {[%clk 0:00:12]} 48. Ra3 {[%clk 0:01:10]}  Rxe4 {[%clk 0:00:12]} 49. Kf3 {[%clk 0:01:11]}  Rb4 {[%clk 0:00:12]} 50. Kg2 {[%clk 0:01:10]}  Kf5 {[%clk 0:00:12]} 51. Kh3 {[%clk 0:01:07]}  Kg5 {[%clk 0:00:12]} 52. f4+ {[%clk 0:01:07]}  Kf5 {[%clk 0:00:11]} 53. Kh4 {[%clk 0:01:08]}  Kg6 {[%clk 0:00:09]} 54. Ra1 {[%clk 0:01:07]}  Rd4 {[%clk 0:00:08]} 55. Ra3 {[%clk 0:01:06]}  Rc4 {[%clk 0:00:08]} 56. Ra2 {[%clk 0:01:06]}  Rd4 {[%clk 0:00:09]} 57. Ra3 {[%clk 0:01:07]}  Kh6 {[%clk 0:00:09]} 58. Ra2 {[%clk 0:01:05]}  Kg6 {[%clk 0:00:10]} 59. Ra3 {[%clk 0:01:05]} 1/2-1/2


[Site "https://www.chess.com"]